fUSD/lending_fUSD_20241227
["ID","MTS","AMOUNT","RATE_DAILY","PERIOD"]
[346820196,1735306260101,-500.0,0.00011424,2]
[346820197,1735306260111,-500.0,0.00011424,2]
[346820198,1735306260121,-757.72,0.00011424,2]
[346820199,1735306260131,-2056.61,0.00011424,2]
[346820200,1735306260141,-500.0,0.00011424,2]
[346820201,1735306260150,-1069.67,0.00011424,2]
[346820202,1735306260165,-500.0,0.00011424,2]
[346820203,1735306260175,-500.0,0.00011424,2]
[346820204,1735306260185,-500.0,0.00011424,2]
[346820205,1735306260195,-1412.76,0.00011424,2]
[346820206,1735306260205,-500.0,0.00011424,2]
[346820207,1735306260215,-1898.35,0.00011424,2]
[346820208,1735306260224,-2009.88,0.00011424,2]
[346820209,1735306260234,-1284.54,0.00011424,2]
[346820210,1735306260244,-1355.51,0.00011424,2]
[346820211,1735306260255,-712.96,0.00011424,2]
[346820212,1735306260264,-500.0,0.00011424,2]
[346820213,1735306260275,-1788.12,0.00011424,2]
[346820214,1735306260284,-500.0,0.00011424,2]
[346820215,1735306260294,-500.0,0.00011424,2]
[346820216,1735306260303,-1426.29,0.00011424,2]
[346820217,1735306260314,-500.0,0.00011424,2]
[346820218,1735306260323,-500.0,0.00011424,2]
[346820219,1735306260333,-1009.88,0.00011424,2]
[346820220,1735306260343,-733.7,0.00011424,2]
[346820221,1735306260352,-801.44,0.00011424,2]
[346820222,1735306260362,-1638.26,0.00011424,2]
[346820223,1735306260371,-500.0,0.00011424,2]
[346820224,1735306260382,-2350.92,0.00011424,2]
[346820225,1735306260391,-818.97,0.00011424,2]
[346820226,1735306260401,-1203.41,0.00011424,2]
[346820227,1735306260411,-755.02,0.00011424,2]
[346820228,1735306260420,-1930.42,0.00011424,2]
[346820229,1735306260430,-558.68,0.00011424,2]
[346820230,1735306260439,-500.0,0.00011424,2]
[346820231,1735306260449,-500.0,0.00011424,2]
[346820232,1735306260458,-500.0,0.00011424,2]
[346820233,1735306260468,-1459.81,0.00011424,2]
[346820234,1735306260478,-1232.98,0.00011424,2]
[346820235,1735306260487,-500.0,0.00011424,2]
[346820236,1735306260497,-500.0,0.00011424,2]
[346820237,1735306260506,-500.0,0.00011424,2]
[346820238,1735306260516,-673.44,0.00011424,2]
[346820239,1735306260526,-1585.26,0.00011424,2]
[346820240,1735306260535,-500.0,0.00011424,2]
[346820241,1735306260546,-1370.82,0.00011424,2]
[346820242,1735306260556,-500.0,0.00011424,2]
[346820243,1735306260566,-500.0,0.00011424,2]
[346820244,1735306260575,-500.0,0.00011424,2]
[346820245,1735306260585,-1559.07,0.00011424,2]
[346820246,1735306260595,-1846.31,0.00011424,2]
[346820247,1735306260605,-500.0,0.00011424,2]
[346820248,1735306260615,-500.0,0.00011424,2]
[346820249,1735306260625,-1268.23,0.00011424,2]
[346820250,1735306260635,-500.0,0.00011424,2]
[346820251,1735306260843,-339.79,0.00011424,2]
[346820252,1735306260854,-500.0,0.00011424,2]
[346820253,1735306260863,-1732.51,0.00011424,2]
[346820254,1735306260873,-500.0,0.00011424,2]
[346820255,1735306260882,-1584.51,0.00011424,2]
[346820256,1735306260891,-500.0,0.00011424,2]
[346820257,1735306260900,-1387.83,0.00011424,2]
[346820258,1735306260909,-456.3235159,0.00011424,2]
[346820259,1735306260918,-500.0,0.00011424,2]
[346820260,1735306260927,-1036.8,0.00011424,2]
[346820261,1735306260936,-1200.95,0.00011424,2]
[346820262,1735306260945,-772.84,0.00011424,2]
[346820263,1735306260954,-500.0,0.00011424,2]
[346820264,1735306260963,-500.0,0.00011424,2]
[346820265,1735306260973,-500.0,0.00011424,2]
[346820266,1735306260981,-1951.33,0.00011424,2]
[346820267,1735306260991,-500.0,0.00011424,2]
[346820268,1735306261000,-831.16,0.00011424,2]
[346820269,1735306261009,-2354.97,0.00011424,2]
[346820270,1735306261018,-1813.83,0.00011424,2]
[346820271,1735306261028,-500.0,0.00011424,2]
[346820272,1735306261037,-2962.28,0.00011424,2]
[346820273,1735306261048,-617.27,0.00011424,2]
[346820274,1735306261058,-500.0,0.00011424,2]
[346820275,1735306261067,-1440.64,0.00011424,2]
[346820276,1735306261077,-589.39,0.00011424,2]
[346820277,1735306261087,-500.0,0.00011424,2]
[346820278,1735306261096,-1657.07,0.00011424,2]
[346820279,1735306261106,-1499.91,0.00011424,2]
[346820280,1735306261116,-500.0,0.00011424,2]
[346820281,1735306261127,-1176.88,0.00011424,2]
[346820282,1735306261136,-599.1,0.00011424,2]
[346820283,1735306261146,-500.0,0.00011424,2]
[346820284,1735306261156,-809.61,0.00011424,2]
[346820285,1735306261167,-2428.12,0.00011424,2]
[346820286,1735306261177,-500.0,0.00011424,2]
[346820287,1735306261186,-2648.89,0.00011424,2]
[346820288,1735306261196,-530.43,0.00011424,2]
[346820289,1735306261207,-2177.18,0.00011424,2]
[346820290,1735306261216,-624.37,0.00011424,2]
[346820291,1735306261226,-936.43,0.00011424,2]
[346820292,1735306261237,-721.89,0.00011424,2]
[346820293,1735306261247,-850.76,0.00011424,2]
[346820294,1735306261256,-500.0,0.00011424,2]
[346820295,1735306261266,-2470.22,0.00011424,2]
[346820296,1735306261276,-2547.12,0.00011424,2]
[346820297,1735306261285,-280.23371514,0.00011424,2]
[346820298,1735306261298,-1364.73,0.00011424,2]
[346820299,1735306261308,-500.0,0.00011424,2]
[346820300,1735306261318,-379.87957798,0.00011424,2]
[346820301,1735306261328,-1859.01,0.00011424,2]
[346820302,1735306261338,-4303.17,0.00011424,2]
[346820303,1735306261347,-1393.79,0.00011424,2]
[346820304,1735306261357,-1425.52,0.00011424,2]
[346820305,1735306261366,-1175.76,0.00011424,2]
[346820306,1735306261375,-1324.06,0.00011424,2]
[346820307,1735306261384,-1404.23,0.00011424,2]
[346820308,1735306261393,-2214.01,0.00011424,2]
[346820309,1735306261403,-1835.97,0.00011424,2]
[346820310,1735306261412,-914.54,0.00011424,2]
[346820311,1735306261422,-1638.35,0.00011424,2]
[346820312,1735306261431,-1820.92,0.00011424,2]
[346820313,1735306261441,-1336.63,0.00011424,2]
[346820314,1735306261450,-3258.63,0.00011424,2]
[346820315,1735306261460,-609.54,0.00011424,2]
[346820316,1735306261469,-500.0,0.00011424,2]
[346820317,1735306261479,-500.0,0.00011424,2]
[346820318,1735306261488,-500.0,0.00011424,2]
[346820319,1735306261497,-1316.49,0.00011424,2]
[346820320,1735306261507,-500.0,0.00011424,2]
[346820321,1735306261516,-2187.5,0.00011424,2]
[346820322,1735306261526,-3568.02,0.00011424,2]
[346820323,1735306261536,-2495.85,0.00011424,2]
[346820324,1735306261547,-1460.1,0.00011424,2]
[346820325,1735306261557,-793.06,0.00011424,2]
[346820326,1735306261567,-500.0,0.00011424,2]
[346820327,1735306261577,-1052.94,0.00011424,2]
[346820328,1735306261586,-1848.63,0.00011424,2]
[346820329,1735306261596,-1478.17,0.00011424,2]
[346820330,1735306261605,-502.6,0.00011424,2]
[346820331,1735306261614,-2934.1,0.00011424,2]
[346820332,1735306261624,-1442.54,0.00011424,2]
[346820333,1735306261633,-727.66,0.00011424,2]
[346820334,1735306261643,-500.0,0.00011424,2]
[346820335,1735306261652,-232.96221494,0.00011424,2]
[346820336,1735306261662,-500.0,0.00011424,2]
[346820337,1735306261671,-1911.58,0.00011424,2]
[346820338,1735306261680,-1772.68,0.00011424,2]
[346820339,1735306261690,-1435.43,0.00011424,2]
[346820340,1735306261699,-500.0,0.00011424,2]
[346820341,1735306261708,-4352.17,0.00011424,2]
[346820342,1735306261718,-1436.46,0.00011424,2]
[346820343,1735306261728,-500.0,0.00011424,2]
[346820344,1735306261737,-629.13,0.00011424,2]
[346820345,1735306261746,-1154.2,0.00011424,2]
[346820346,1735306261756,-1437.23,0.00011424,2]
[346820347,1735306261766,-500.0,0.00011424,2]
[346820348,1735306261776,-4754.92,0.00011424,2]
[346820349,1735306261786,-573.93,0.00011424,2]
[346820350,1735306261795,-1234.74,0.00011424,2]
[346820351,1735306261805,-1851.47,0.00011424,2]
[346820352,1735306261814,-866.1,0.00011424,2]
[346820353,1735306261824,-501.42,0.00011424,2]
[346820354,1735306261833,-1534.43,0.00011424,2]
[346820355,1735306261842,-500.0,0.00011424,2]
[346820356,1735306261851,-500.0,0.00011424,2]
[346820357,1735306261861,-525.05,0.00011424,2]
[346820358,1735306261871,-1190.17,0.00011424,2]
[346820359,1735306261880,-500.0,0.00011424,2]
[346820360,1735306261889,-2144.85,0.00011424,2]
[346820361,1735306261898,-13768.66,0.00011424,2]
[346820362,1735306261908,-1092.31,0.00011424,2]
[346820363,1735306261917,-733.3,0.00011424,2]
[346820364,1735306261926,-2179.23,0.00011424,2]
[346820365,1735306261936,-563.88,0.00011424,2]
[346820366,1735306261945,-9077.24,0.00011424,2]
[346820367,1735306261954,-1598.52,0.00011424,2]
[346820368,1735306261964,-2434.04,0.00011424,2]
[346820369,1735306261973,-847.53,0.00011424,2]
[346820370,1735306261983,-500.0,0.00011424,2]
[346820371,1735306261992,-1541.53,0.00011424,2]
[346820372,1735306262002,-1263.16,0.00011424,2]
[346820373,1735306262011,-801.73,0.00011424,2]
[346820374,1735306262022,-1519.6,0.00011424,2]
[346820375,1735306262031,-500.0,0.00011424,2]
[346820376,1735306262041,-2003.5,0.00011424,2]
[346820377,1735306262052,-2051.05,0.00011424,2]
[346820378,1735306262062,-9585.5,0.00011424,2]
[346820379,1735306262072,-1215.87,0.00011424,2]
[346820380,1735306262081,-500.0,0.00011424,2]
[346820381,1735306262091,-1953.84,0.00011424,2]
[346820382,1735306262100,-2936.73,0.00011424,2]
[346820383,1735306262110,-500.0,0.00011424,2]
[346820384,1735306262119,-2825.02,0.00011424,2]
[346820385,1735306262129,-720.34,0.00011424,2]
[346820386,1735306262138,-2387.1,0.00011424,2]
[346820387,1735306262148,-1613.62,0.00011424,2]
[346820388,1735306262158,-1377.95,0.00011424,2]
[346820389,1735306262172,-3596.75,0.00011424,2]
[346820390,1735306262181,-3008.73,0.00011424,2]
[346820391,1735306262191,-878.93,0.00011424,2]
[346820392,1735306262200,-500.0,0.00011424,2]
[346820393,1735306262211,-6366.49,0.00011424,2]
[346820394,1735306262221,-1512.13,0.00011424,2]
[346820395,1735306262230,-957.14,0.00011424,2]
[346820396,1735306262240,-500.0,0.00011424,2]
[346820397,1735306262249,-500.0,0.00011424,2]
[346820398,1735306262259,-500.0,0.00011424,2]
[346820399,1735306262268,-640.14,0.00011424,2]
[346820400,1735306262278,-837.16,0.00011424,2]
[346820401,1735306262286,-1881.5,0.00011424,2]
[346820402,1735306262295,-955.52,0.00011424,2]
[346820403,1735306262304,-3975.83,0.00011424,2]
[346820404,1735306262312,-500.0,0.00011424,2]
[346820405,1735306262319,-500.0,0.00011424,2]
[346820406,1735306262329,-1747.85,0.00011424,2]
[346820407,1735306262336,-500.0,0.00011424,2]
[346820408,1735306262344,-2274.69,0.00011424,2]
[346820409,1735306262353,-500.0,0.00011424,2]
[346820410,1735306262362,-1535.14,0.00011424,2]
[346820411,1735306262371,-2145.35,0.00011424,2]
[346820412,1735306262381,-214.88845764,0.00011424,2]
[346820413,1735306262390,-500.0,0.00011424,2]
[346820414,1735306262400,-4799.02,0.00011424,2]
[346820415,1735306262409,-857.84,0.00011424,2]
[346820416,1735306262419,-500.0,0.00011424,2]
[346820417,1735306262428,-1979.16,0.00011424,2]
[346820418,1735306262438,-1552.45,0.00011424,2]
[346820419,1735306262447,-966.6,0.00011424,2]
[346820420,1735306262457,-1013.34,0.00011424,2]
[346820421,1735306262467,-500.0,0.00011424,2]
[346820422,1735306262477,-2897.7,0.00011424,2]
[346820423,1735306262487,-500.0,0.00011424,2]
[346820424,1735306262497,-500.0,0.00011424,2]
[346820425,1735306262507,-500.0,0.00011424,2]
[346820426,1735306262516,-500.0,0.00011424,2]
[346820427,1735306262526,-2006.92,0.00011424,2]
[346820428,1735306262536,-500.0,0.00011424,2]
[346820429,1735306262546,-500.0,0.00011424,2]
[346820430,1735306262555,-3076.9,0.00011424,2]
[346820431,1735306262564,-180.38650903,0.00011424,2]
[346820432,1735306262574,-429.3026671,0.00011424,2]
[346820433,1735306262584,-1045.07,0.00011424,2]
[346820434,1735306262593,-1637.15,0.00011424,2]
[346820435,1735306262603,-500.0,0.00011424,2]
[346820436,1735306262614,-3298.5,0.00011424,2]
[346820437,1735306262625,-1266.02,0.00011424,2]
[346820438,1735306262634,-500.0,0.00011424,2]
[346820439,1735306262644,-3559.92,0.00011424,2]
[346820440,1735306262654,-919.96,0.00011424,2]
[346820441,1735306262664,-500.0,0.00011424,2]
[346820442,1735306262674,-500.0,0.00011425,2]
[346820443,1735306262683,-500.0,0.00011425,2]
[346820444,1735306262692,-636.32,0.00011425,2]
[346820445,1735306262703,-500.0,0.00011425,2]
[346820446,1735306262713,-500.0,0.00011425,2]
[346820447,1735306262723,-500.0,0.00011425,2]
[346820448,1735306262732,-500.0,0.00011425,2]
[346820449,1735306262742,-500.0,0.00011425,2]
[346820450,1735306262752,-500.0,0.00011425,2]
[346820451,1735306262762,-500.0,0.00011425,2]
[346820452,1735306262771,-500.0,0.00011425,2]
[346820453,1735306262781,-516.49,0.00011425,2]
[346820454,1735306262790,-722.63,0.00011425,2]
[346820455,1735306262801,-992.85,0.00011425,2]
[346820456,1735306262811,-500.0,0.00011425,2]
[346820457,1735306262820,-500.0,0.00011425,2]
[346820458,1735306262830,-500.0,0.00011425,2]
[346820459,1735306262839,-510.41,0.00011425,2]
[346820460,1735306262848,-909.19,0.00011425,2]
[346820461,1735306262858,-500.0,0.00011425,2]
[346820462,1735306262868,-254.1528624,0.00011425,2]
[346820463,1735306262878,-871.78,0.00011425,2]
[346820464,1735306262888,-526.15,0.00011425,2]
[346820465,1735306262898,-500.0,0.00011425,2]
[346820466,1735306262907,-500.0,0.00011425,2]
[346820467,1735306262917,-500.0,0.00011425,2]
[346820468,1735306262926,-633.92,0.00011425,2]
[346820469,1735306262936,-500.0,0.00011425,2]
[346820470,1735306262946,-500.0,0.00011425,2]
[346820471,1735306262956,-500.0,0.00011425,2]
[346820472,1735306262966,-500.0,0.00011425,2]
[346820473,1735306262976,-500.0,0.00011425,2]
[346820474,1735306262986,-500.0,0.00011425,2]
[346820475,1735306262995,-500.0,0.00011425,2]
[346820476,1735306263005,-1366.66,0.00011425,2]
[346820477,1735306263015,-1568.69,0.00011425,2]
[346820478,1735306263024,-1429.92,0.00011425,2]
[346820479,1735306263034,-604.69,0.00011425,2]
[346820480,1735306263043,-1728.67,0.00011425,2]
[346820481,1735306263053,-500.0,0.00011425,2]
[346820482,1735306263062,-500.0,0.00011425,2]
[346820483,1735306263072,-500.0,0.00011425,2]
[346820484,1735306263081,-500.0,0.00011425,2]
[346820485,1735306263091,-500.0,0.00011425,2]
[346820486,1735306263100,-500.0,0.00011425,2]
[346820487,1735306263111,-500.0,0.00011425,2]
[346820488,1735306263198,-8270.08,0.00011425,2]
[346820489,1735306263209,-500.0,0.00011425,2]
[346820490,1735306263219,-500.0,0.00011425,2]
[346820491,1735306263229,-500.0,0.00011425,2]
[346820492,1735306263239,-2846.89,0.00011425,2]
[346820493,1735306263250,-2068.11,0.00011425,2]
[346820494,1735306263259,-500.0,0.00011425,2]
[346820495,1735306263269,-5045.96,0.00011425,2]
[346820496,1735306263278,-500.0,0.00011425,2]
[346820497,1735306263287,-3968.81,0.00011425,2]
[346820498,1735306263297,-500.0,0.00011425,2]
[346820499,1735306263306,-500.0,0.00011425,2]
[346820500,1735306263317,-3499.72,0.00011425,2]
[346820501,1735306263326,-245.66134047,0.00011425,2]
[346820502,1735306263335,-500.0,0.00011425,2]
[346820503,1735306263344,-711.85,0.00011425,2]
[346820504,1735306263352,-24383.54,0.00011425,2]
[346820505,1735306263360,-889.93,0.00011425,2]
[346820506,1735306263369,-1414.6,0.00011425,2]
[346820507,1735306263379,-500.0,0.00011425,2]
[346820508,1735306263388,-1367.36,0.00011425,2]
[346820509,1735306263398,-1707.69,0.00011425,2]
[346820510,1735306263407,-14554.96,0.00011425,2]
[346820511,1735306263417,-1819.73,0.00011425,2]
[346820512,1735306263427,-500.0,0.00011425,2]
[346820513,1735306263436,-500.0,0.00011425,2]
[346820514,1735306263447,-1260.36,0.00011425,2]
[346820515,1735306263457,-500.0,0.00011425,2]
[346820516,1735306263466,-789.28,0.00011425,2]
[346820517,1735306263476,-1940.51,0.00011425,2]
[346820518,1735306263486,-2076.11,0.00011425,2]
[346820519,1735306263495,-500.0,0.00011425,2]
[346820520,1735306263504,-582.72,0.00011425,2]
[346820521,1735306263514,-701.52,0.00011425,2]
[346820522,1735306263524,-1683.42,0.00011425,2]
[346820523,1735306263534,-500.0,0.00011425,2]
[346820524,1735306263544,-500.0,0.00011425,2]
[346820525,1735306263554,-939.11,0.00011425,2]
[346820526,1735306263564,-500.0,0.00011425,2]
[346820527,1735306263573,-1060.31,0.00011425,2]
[346820528,1735306263583,-1884.63,0.00011425,2]
[346820529,1735306263592,-702.23,0.00011425,2]
[346820530,1735306263602,-1875.64,0.00011425,2]
[346820531,1735306263612,-528.22,0.00011425,2]
[346820532,1735306263621,-307.66301561,0.00011425,2]
[346820533,1735306263631,-2631.5,0.00011425,2]
[346820534,1735306263642,-5896.68,0.00011425,2]
[346820535,1735306263651,-500.0,0.00011425,2]
[346820536,1735306263662,-702.21,0.00011425,2]
[346820537,1735306263671,-901.63,0.00011425,2]
[346820538,1735306263682,-2072.97,0.00011425,2]
[346820539,1735306263692,-500.0,0.00011425,2]
[346820540,1735306263701,-1703.99,0.00011425,2]
[346820541,1735306263711,-1353.5,0.00011425,2]
[346820542,1735306263721,-500.0,0.00011425,2]
[346820543,1735306263730,-500.0,0.00011425,2]
[346820544,1735306263740,-500.0,0.00011425,2]
[346820545,1735306263750,-1781.59,0.00011425,2]
[346820546,1735306263759,-500.0,0.00011425,2]
[346820547,1735306263769,-742.42,0.00011425,2]
[346820548,1735306263779,-653.91,0.00011425,2]
[346820549,1735306263789,-798.31,0.00011425,2]
[346820550,1735306263803,-2581.0,0.00011425,2]
[346820551,1735306263813,-500.0,0.00011425,2]
[346820552,1735306263823,-500.0,0.00011425,2]
[346820553,1735306263834,-1852.4,0.00011425,2]
[346820554,1735306263844,-500.0,0.00011425,2]
[346820555,1735306263853,-500.0,0.00011425,2]
[346820556,1735306263863,-500.0,0.00011425,2]
[346820557,1735306263873,-893.35,0.00011425,2]
[346820558,1735306263883,-2117.12,0.00011425,2]
[346820559,1735306263892,-1561.34,0.00011425,2]
[346820560,1735306263901,-1191.99,0.00011425,2]
[346820561,1735306263911,-1486.12,0.00011425,2]
[346820562,1735306263920,-1280.4,0.00011425,2]
[346820563,1735306263930,-2058.65,0.00011425,2]
[346820564,1735306263939,-2670.13,0.00011425,2]
[346820565,1735306263949,-500.0,0.00011425,2]
[346820566,1735306263959,-839.4,0.00011425,2]
[346820567,1735306263969,-500.0,0.00011425,2]
[346820568,1735306263978,-500.0,0.00011425,2]
[346820569,1735306263990,-1408.15,0.00011425,2]
[346820570,1735306264000,-877.95,0.00011425,2]
[346820571,1735306264012,-517.88,0.00011425,2]
[346820572,1735306264021,-500.0,0.00011425,2]
[346820573,1735306264031,-2862.18,0.00011425,2]
[346820574,1735306264040,-907.76,0.00011425,2]
[346820575,1735306264055,-1568.55,0.00011425,2]
[346820576,1735306264065,-2911.29,0.00011425,2]
[346820577,1735306264075,-2911.29,0.00011425,2]
[346820578,1735306264085,-674.4,0.00011425,2]
[346820579,1735306264093,-516.73193575,0.00011425,2]
[346820580,1735306264103,-2077.6,0.00011425,2]
[346820581,1735306264113,-3405.53,0.00011425,2]
[346820582,1735306264122,-2791.45,0.00011425,2]
[346820583,1735306264131,-1960.94,0.00011425,2]
[346820584,1735306264140,-501.37,0.00011425,2]
[346820585,1735306264149,-1471.36,0.00011425,2]
[346820586,1735306264158,-470.73471415,0.00011425,2]
[346820587,1735306264169,-2066.35,0.00011425,2]
[346820588,1735306264178,-607.81,0.00011425,2]
[346820589,1735306264188,-1487.03,0.00011425,2]
[346820590,1735306264197,-1538.23,0.00011425,2]
[346820591,1735306264206,-500.0,0.00011425,2]
[346820592,1735306264217,-3972.05,0.00011425,2]
[346820593,1735306264227,-5071.1,0.00011425,2]
[346820594,1735306264236,-203.34,0.00011425,2]
[346820595,1735306264246,-1140.63,0.00011425,2]
[346820596,1735306264257,-3650.7,0.00011425,2]
[346820597,1735306264268,-549.8,0.00011425,2]
[346820598,1735306264277,-1276.18,0.00011425,2]
[346820599,1735306264286,-500.0,0.00011425,2]
[346820600,1735306264294,-3809.01,0.00011425,2]
[346820601,1735306264308,-1267.32,0.00011425,2]
[346820602,1735306264317,-20639.26,0.00011425,2]
[346820603,1735306264325,-1451.45,0.00011425,2]
[346820604,1735306264334,-6189.98,0.00011425,2]
[346820605,1735306264343,-1251.17,0.00011425,2]
[346820606,1735306264353,-3204.59,0.00011425,2]
[346820607,1735306264361,-1794.95,0.00011425,2]
[346820608,1735306264370,-500.0,0.00011425,2]
[346820609,1735306264377,-4594.04,0.00011425,2]
[346820610,1735306264387,-863.22,0.00011425,2]
[346820611,1735306264396,-4907.67,0.00011425,2]
[346820612,1735306264404,-1280.94,0.00011425,2]
[346820613,1735306264412,-500.0,0.00011425,2]
[346820614,1735306264421,-2552.57,0.00011425,2]
[346820615,1735306264431,-9143.35,0.00011425,2]
[346820616,1735306264442,-1125.65,0.00011425,2]
[346820617,1735306264453,-583.35,0.00011425,2]
[346820618,1735306264463,-1328.72,0.00011425,2]
[346820619,1735306264473,-996.77,0.00011425,2]
[346820620,1735306264483,-1157.95,0.00011425,2]
[346820621,1735306264492,-1578.52,0.00011425,2]
[346820622,1735306264503,-1605.7,0.00011425,2]
[346820623,1735306264513,-500.0,0.00011425,2]
[346820624,1735306264524,-500.0,0.00011425,2]
[346820625,1735306264535,-10270.36,0.00011425,2]
[346820626,1735306264551,-500.0,0.00011425,2]
[346820627,1735306264561,-500.0,0.00011425,2]
[346820628,1735306264573,-500.0,0.00011425,2]
[346820629,1735306264584,-4867.6,0.00011425,2]
[346820630,1735306264595,-500.0,0.00011425,2]
[346820631,1735306264605,-901.36,0.00011425,2]
[346820632,1735306264616,-500.0,0.00011425,2]
[346820633,1735306264626,-743.5,0.00011425,2]
[346820634,1735306264636,-4713.74,0.00011425,2]
[346820635,1735306264648,-1521.59,0.00011425,2]
[346820636,1735306264658,-500.0,0.00011425,2]
[346820637,1735306264668,-1367.42,0.00011425,2]
[346820638,1735306264678,-500.0,0.00011425,2]
[346820639,1735306264688,-17898.06,0.00011425,2]
[346820640,1735306264697,-1837.88,0.00011426,2]
[346820641,1735306264707,-4000.52,0.00011426,2]
[346820642,1735306264717,-4508.39,0.00011426,2]
[346820643,1735306264727,-944.58,0.00011426,2]
[346820644,1735306264737,-3922.68,0.00011426,2]
[346820645,1735306264747,-3189.19,0.00011426,2]
[346820646,1735306264756,-4999.96,0.00011426,2]
[346820647,1735306264766,-5710.83,0.00011426,2]
[346820648,1735306264775,-8804.53,0.00011426,2]
[346820649,1735306264784,-63931.01,0.00011426,2]
[346820650,1735306264794,-61267.22,0.00011426,2]
[346820651,1735306264807,-6967.22,0.00011426,2]
[346820652,1735306264816,-3888.21,0.00011426,2]
[346820653,1735306264826,-2033.34,0.00011426,2]
[346820654,1735306264835,-5758.05,0.00011426,2]
[346820655,1735306264845,-44342.41,0.00011426,2]
[346820656,1735306264854,-1531.53,0.00011426,2]
[346820657,1735306264864,-4568.36,0.00011426,2]
[346820658,1735306264874,-500.0,0.00011427,2]
[346820659,1735306264883,-500.0,0.00011427,2]
[346820660,1735306264893,-1813.64,0.00011427,2]
[346820661,1735306264903,-500.0,0.00011427,2]
[346820662,1735306264912,-500.0,0.00011427,2]
[346820663,1735306264922,-3099.76,0.00011427,2]
[346820664,1735306264932,-10962.93,0.00011427,2]
[346820665,1735306264942,-1377.79,0.00011427,2]
[346820666,1735306264951,-2950.93,0.00011427,2]
[346820667,1735306264961,-3054.53,0.00011427,2]
[346820668,1735306264971,-2338.42,0.00011427,2]
[346820669,1735306264980,-7649.12,0.00011427,2]
[346820670,1735306264990,-6791.44,0.00011427,2]
[346820671,1735306265000,-431.7,0.00011463,2]
[346820672,1735306265010,-500.0,0.00011473,2]
[346820673,1735306265020,-2751.0,0.00011507,2]
[346820674,1735306265029,-944.58,0.00011563,2]
[346820675,1735306265039,-821.85,0.00011696,2]
[346820676,1735306265050,-663.71,0.00011696,2]
[346820677,1735306265060,-1791.41,0.00011697,2]
[346820678,1735306265069,-3807.95,0.00011697,2]
[346820679,1735306265079,-500.0,0.00011697,2]
[346820680,1735306265088,-1796.18,0.00011697,2]
[346820681,1735306265098,-3486.02,0.00011697,2]
[346820682,1735306265108,-3549.69,0.00011697,2]
[346820683,1735306265118,-6594.56,0.00011697,2]
[346820684,1735306265128,-2062.84,0.00011697,2]
[346820685,1735306265138,-3282.47,0.00011697,2]
[346820686,1735306265148,-5031.78,0.00011697,2]
[346820687,1735306265158,-4262.57,0.00011697,2]
[346820688,1735306265171,-1958.76,0.00011697,2]
[346820689,1735306265181,-2857.14,0.00011697,2]
[346820690,1735306265191,-3236.92,0.00011697,2]
[346820691,1735306265201,-5021.39,0.00011697,2]
[346820692,1735306265210,-1338.6,0.00011697,2]
[346820693,1735306265220,-1289.07,0.00011697,2]
[346820694,1735306265230,-5901.0,0.00011697,2]
[346820695,1735306265240,-20736.34,0.00011697,2]